bitfinex-derivatives/quotes_ETHF0:USTF0_20260123
["timestamp","ask_amount","ask_price","bid_price","bid_amount"]
[1769201078480,1.20673803,2940.6,2939.4,3.33826433]
[1769201078681,6.59322,2941.0,2939.4,3.33826433]
[1769201078878,1.20675944,2940.9,2939.4,3.33826433]
[1769201079082,1.20675944,2940.8,2939.4,3.33826433]
[1769201079285,1.20675944,2940.7,2939.4,3.33826433]
[1769201079484,1.20675944,2940.6,2939.4,3.33826433]
[1769201079786,0.32412752,2940.5,2939.4,3.33826433]
[1769201079987,6.59322,2941.0,2939.4,3.33826433]
[1769201080188,1.20693051,2940.9,2939.4,3.33826433]
[1769201080483,1.20693051,2940.8,2939.4,3.33826433]
[1769201080677,1.20693051,2940.7,2939.4,3.33826433]
[1769201080883,1.20693051,2940.6,2939.4,3.33826433]
[1769201081083,0.3241728,2940.5,2939.4,3.33826433]
[1769201081285,6.59322,2941.0,2939.4,3.33826433]
[1769201081493,1.20694245,2940.9,2939.4,3.33826433]
[1769201081690,1.20694245,2940.8,2939.4,3.33826433]
[1769201081990,1.20694245,2940.7,2939.4,3.33826433]
[1769201082292,1.20694245,2940.6,2939.4,3.33826433]
[1769201082492,0.32417258,2940.5,2939.4,3.33826433]
[1769201082692,6.59322,2941.0,2939.4,3.33826433]
[1769201082894,1.20679126,2940.9,2939.4,3.33826433]
[1769201083091,1.20679126,2940.8,2939.4,3.50857433]
[1769201083287,1.20679126,2940.7,2939.4,3.50857433]
[1769201083492,0.32413212,2940.6,2939.4,3.50857433]
[1769201083692,6.59322,2941.0,2939.4,3.50857433]
[1769201083893,1.2068483,2940.9,2939.4,3.50857433]
[1769201084089,1.2068483,2940.8,2939.4,3.33826433]
[1769201084297,1.2068483,2940.7,2939.0,3.33826433]
[1769201084589,1.2068483,2940.6,2939.0,3.33826433]
[1769201084794,1.2068483,2940.5,2939.0,3.33826433]
[1769201085100,1.2068483,2940.4,2939.0,3.33826433]
[1769201085294,1.2068483,2940.3,2939.0,3.33826433]
[1769201085496,3.64863306,2940.7,2939.0,3.33826433]
[1769201085696,1.20610391,2940.6,2939.0,3.33826433]
[1769201085893,1.20610391,2940.5,2939.0,3.33826433]
[1769201086198,1.20610391,2940.4,2939.0,3.50859433]
[1769201086500,1.20610391,2940.3,2939.0,3.50859433]
[1769201086701,5.42324,2940.7,2939.0,3.50859433]
[1769201086897,1.20579195,2940.6,2939.0,3.50859433]
[1769201087199,1.20579195,2940.5,2939.0,3.50859433]
[1769201087401,1.20579195,2940.4,2939.0,3.50859433]
[1769201087596,1.20579195,2940.3,2939.0,3.50859433]
[1769201087894,0.3238801,2940.2,2938.7,3.51116718]
[1769201088100,3.64864306,2940.5,2938.7,3.51116718]
[1769201088303,4.68422521,2940.4,2938.7,3.51116718]
[1769201088598,1.20583215,2940.3,2938.7,3.51116718]
[1769201088799,1.20583215,2940.2,2938.7,3.51116718]
[1769201089000,0.32390552,2940.1,2938.7,3.51116718]
[1769201089195,0.32388706,2940.0,2938.7,3.51116718]
[1769201089392,3.64864306,2940.4,2938.7,3.51116718]
[1769201089598,1.20556598,2940.3,2938.7,3.51116718]
[1769201089794,1.20556598,2940.2,2938.7,3.51116718]
[1769201089995,1.20556598,2940.1,2938.7,3.51116718]
[1769201090195,1.20556598,2940.0,2938.7,3.51116718]
[1769201090400,3.64864306,2940.4,2938.7,3.51116718]
[1769201090602,1.20581299,2940.3,2938.7,3.51116718]
[1769201090802,1.20581299,2940.2,2938.7,3.51116718]
[1769201090996,1.20581299,2940.1,2938.7,3.51116718]
[1769201091202,3.64864306,2940.4,2938.7,3.51116718]
[1769201091203,1.20581299,2940.0,2938.7,3.51116718]
[1769201091503,3.64864306,2940.4,2938.7,3.51116718]
[1769201091698,1.20584902,2940.3,2938.7,3.51116718]
[1769201091897,1.20584902,2940.2,2938.7,3.51116718]
[1769201092096,1.20584902,2940.1,2938.7,3.51116718]
[1769201092299,1.20584902,2940.0,2938.7,3.51116718]
[1769201092499,12.29864306,2940.4,2938.7,3.51116718]
[1769201092699,1.20591072,2940.3,2938.7,3.51116718]
[1769201092897,1.20591072,2940.2,2938.7,3.51116718]
[1769201093102,1.20591072,2940.1,2938.7,3.51116718]
[1769201093301,1.20591072,2940.0,2938.7,3.51116718]
[1769201093500,12.29864306,2940.4,2938.7,3.51116718]
[1769201093702,1.20579718,2940.3,2938.8,0.17034]
[1769201094004,0.17025,2940.4,2938.8,0.17034]
[1769201094005,1.20579718,2940.2,2938.9,3.33826433]
[1769201094304,0.32392394,2940.1,2938.9,3.33826433]
[1769201094606,0.17025,2940.4,2938.9,3.33826433]
[1769201094902,1.20540595,2940.3,2938.9,3.50860433]
[1769201095098,1.20540595,2940.2,2938.9,3.50860433]
[1769201095295,12.12839306,2940.8,2938.9,3.50860433]
[1769201095504,1.2052378,2940.7,2938.9,3.50860433]
[1769201095696,1.3754778,2940.6,2938.9,3.50860433]
[1769201095898,0.17025,2940.4,2938.9,3.33826433]
[1769201096097,1.2052378,2940.3,2938.9,3.33826433]
[1769201096398,1.2052378,2940.2,2938.9,3.33826433]
[1769201096600,1.2052378,2940.1,2938.9,3.33826433]
[1769201096799,0.17025,2940.4,2938.9,3.33826433]
[1769201097000,1.20480725,2940.3,2938.9,3.33826433]
[1769201097201,1.20480725,2940.2,2938.9,3.33826433]
[1769201097401,1.20480725,2940.1,2938.9,3.33826433]
[1769201097601,0.32369746,2940.0,2938.9,3.33826433]
[1769201097808,0.17025,2940.4,2938.9,3.33826433]
[1769201098103,1.20501534,2940.3,2938.9,3.33826433]
[1769201098303,1.20501534,2940.2,2938.9,3.33826433]
[1769201098500,1.20501534,2940.1,2938.9,3.33826433]
[1769201098805,0.32376258,2940.0,2938.9,3.33826433]
[1769201099009,0.17025,2940.4,2938.9,3.33826433]
[1769201099207,1.20518727,2940.3,2938.9,3.33826433]
[1769201099498,1.20518727,2940.2,2938.9,3.33826433]
[1769201099693,1.20518727,2940.1,2938.9,3.33826433]
[1769201099897,0.32379872,2940.0,2938.9,3.33826433]
[1769201100093,5.79757622,2940.8,2938.9,3.33826433]
[1769201100298,1.20535265,2940.7,2938.9,3.50859433]
[1769201100504,3.47839306,2940.3,2938.7,0.00255285]
[1769201100706,1.20535265,2940.2,2938.7,0.00255285]
[1769201100905,0.88150218,2940.1,2938.7,3.34081718]
[1769201101206,0.32381989,2940.0,2938.7,3.34081718]
[1769201101406,0.17025,2940.4,2938.7,3.34081718]
[1769201101608,1.20532026,2940.3,2938.7,3.34081718]
[1769201101808,1.20532026,2940.2,2938.7,3.34081718]
[1769201102004,1.20532026,2940.1,2938.7,3.34081718]
[1769201102299,0.17029,2939.8,2938.3,3.60244357]
[1769201102506,1.37561026,2939.7,2938.3,3.60244357]
[1769201102703,1.20532026,2939.6,2938.3,3.60244357]
[1769201102899,1.20532026,2939.5,2938.3,3.60244357]
[1769201103100,3.47736797,2940.2,2938.3,3.60244357]
[1769201103408,3.47740797,2939.7,2938.3,0.00316096]
[1769201103598,1.20511571,2939.6,2938.3,0.00316096]
[1769201103799,1.20511571,2939.5,2938.3,0.00316096]
[1769201104105,3.47740797,2939.7,2938.3,0.00316096]
[1769201104299,1.20480114,2939.6,2938.3,0.00316096]
[1769201104500,1.20480114,2939.5,2938.3,3.60560453]
[1769201104700,8.645,2940.1,2938.3,3.60560453]
[1769201104904,1.20481192,2940.0,2938.3,3.60560453]
[1769201105106,1.20481192,2939.9,2938.3,3.60560453]
[1769201105303,1.20481192,2939.8,2938.3,3.60560453]
[1769201105606,1.20481192,2939.7,2938.3,3.60560453]
[1769201105808,1.20481192,2939.6,2938.3,3.60560453]
[1769201106108,0.88078018,2939.5,2938.3,3.60560453]
[1769201106407,0.17028,2940.0,2938.3,3.60560453]
[1769201106607,1.20473068,2939.9,2938.3,3.60560453]
[1769201106807,1.20473068,2939.8,2938.3,3.60560453]
[1769201107004,1.20473068,2939.7,2938.3,3.60560453]
[1769201107206,0.88073006,2939.6,2938.3,3.60560453]
[1769201107405,3.57628,2940.0,2938.3,3.60560453]
[1769201107608,1.20558018,2939.9,2938.3,3.60560453]
[1769201107802,1.20558018,2939.8,2938.3,3.60560453]
[1769201108105,6.423,2940.3,2938.8,3.34614067]
[1769201108306,3.406,2940.4,2938.8,3.34614067]
[1769201108307,1.20575584,2940.2,2938.8,3.34614067]
[1769201108506,1.20575584,2940.1,2938.8,3.34614067]
[1769201108700,12.09109913,2940.6,2938.8,3.34614067]
[1769201108904,1.20589992,2940.5,2938.8,3.34614067]
[1769201109102,1.20589992,2940.4,2938.8,3.34614067]
[1769201109305,1.20612027,2940.3,2939.2,3.34614067]
[1769201109501,6.423,2940.8,2939.2,3.34614067]
[1769201109713,1.20643073,2940.7,2939.2,3.34614067]
[1769201110014,1.20643073,2940.7,2938.3,0.00316096]
[1769201110015,0.17025,2940.5,2938.8,3.34614067]
[1769201110202,1.20643073,2940.4,2938.8,3.34614067]
[1769201110403,1.20643073,2940.3,2938.8,3.34614067]
[1769201110611,3.26885913,2940.0,2938.4,3.34614067]
[1769201110908,1.20643073,2939.9,2938.4,3.34614067]
[1769201111112,1.20643073,2939.8,2938.6,3.34614067]
[1769201111309,4.207,2940.2,2938.6,3.34614067]
[1769201111506,1.20661896,2940.1,2938.8,3.34614067]
[1769201111805,10.10594275,2940.8,2939.1,3.51647067]
[1769201112006,1.20664108,2940.7,2939.1,3.51647067]
[1769201112211,1.20664108,2940.6,2939.1,3.51647067]
[1769201112411,1.20664108,2940.5,2939.1,3.51647067]
[1769201112603,10.10594275,2940.8,2939.1,3.51647067]
[1769201112604,1.20664108,2940.4,2939.2,0.17032]
[1769201112809,10.10594275,2940.8,2939.3,3.34614067]
[1769201113010,1.20699814,2940.7,2939.3,3.34614067]
[1769201113207,1.20699814,2940.6,2939.3,3.34614067]
[1769201113512,6.69994275,2940.8,2939.3,3.34614067]
[1769201113714,1.20709206,2940.7,2939.3,3.34614067]
[1769201113914,1.20709206,2940.6,2939.3,3.34614067]
[1769201114114,0.88256015,2940.5,2939.3,3.34614067]
[1769201114310,6.69994275,2940.8,2939.3,3.34614067]
[1769201114512,0.00427455,2941.1,2939.5,3.51644067]
[1769201114708,1.20740721,2941.0,2939.5,3.51644067]
[1769201114909,1.20740721,2941.0,2938.7,4.21494643]
[1769201114910,1.20740721,2940.9,2939.7,3.34614067]
[1769201115113,0.32471968,2940.8,2939.7,3.34614067]
[1769201115315,0.00427455,2941.1,2939.9,3.34614067]
[1769201115618,0.32462048,2941.0,2939.9,3.34614067]
[1769201115814,0.00427455,2941.1,2939.9,3.34614067]
[1769201116114,0.32454843,2941.0,2939.9,3.34614067]
[1769201116310,0.00427455,2941.1,2939.9,3.34614067]
[1769201116511,0.32447354,2941.0,2939.9,3.34614067]
[1769201116816,1.2064688,2940.9,2939.4,3.34614067]
[1769201117009,3.26885913,2940.6,2938.9,3.34614067]
[1769201117212,3.43913913,2940.1,2938.5,3.34614067]
[1769201117419,0.17029,2939.7,2938.3,0.00316096]
[1769201117614,1.2064688,2939.6,2938.3,0.00316096]
[1769201117912,0.17029,2939.7,2938.3,0.00316096]
[1769201117913,1.2064688,2939.5,2938.3,0.00316096]
[1769201118114,0.32446957,2939.4,2938.3,0.00316096]
[1769201118417,1.29524059,2939.9,2938.3,3.34930163]
[1769201118620,1.20674201,2939.8,2938.3,3.34930163]
[1769201118921,1.20674201,2939.7,2938.3,3.34930163]
[1769201119113,1.20674201,2939.6,2938.3,3.34930163]
[1769201119314,1.20674201,2939.5,2938.3,3.34930163]
[1769201119518,0.32430998,2939.4,2938.3,3.34930163]
[1769201119815,0.32430998,2939.3,2938.3,3.34930163]
[1769201120017,1.29524059,2939.4,2938.3,0.00316096]
[1769201120217,1.20719817,2939.3,2938.3,0.00316096]
[1769201120420,0.32443241,2939.2,2938.3,0.00316096]
[1769201120620,1.29524059,2939.4,2938.3,0.00316096]
[1769201120813,1.20711059,2939.3,2938.3,0.00316096]
[1769201121011,0.32440878,2939.2,2938.3,0.00316096]
[1769201121319,1.29524059,2939.4,2938.3,0.00316096]
[1769201121519,1.20696088,2939.3,2938.3,0.00316096]
[1769201121715,1.20696088,2939.2,2938.3,0.00316096]
[1769201121910,3.26885913,2939.8,2938.3,0.00316096]
[1769201122117,1.2072082,2939.7,2938.3,3.34930163]
[1769201122413,1.2072082,2939.6,2938.3,3.34930163]
[1769201122615,0.32443552,2939.5,2938.3,3.34930163]
[1769201122811,1.29524059,2939.9,2938.3,3.34930163]
[1769201123016,1.20724616,2939.8,2938.3,3.34930163]
[1769201123319,1.20724616,2939.7,2938.3,3.34930163]
[1769201123517,1.20724616,2939.6,2938.3,0.00316096]
[1769201123715,1.20724616,2939.5,2938.3,0.00316096]
[1769201123916,1.20724616,2939.4,2938.3,0.00316096]
[1769201124219,1.20724616,2939.3,2938.3,0.00316096]
[1769201124414,0.17026,2940.3,2938.3,3.34930163]
[1769201124615,1.20660109,2940.2,2938.3,3.34930163]
[1769201124922,0.88232839,2940.1,2938.7,3.51649067]
[1769201125221,6.423,2940.5,2938.7,3.51649067]
[1769201125413,1.20681744,2940.4,2938.7,3.51649067]
[1769201125713,1.20681744,2940.3,2938.7,3.51649067]
[1769201125912,1.20681744,2940.2,2938.7,3.51649067]
[1769201126112,6.423,2940.5,2938.7,3.51649067]
[1769201126314,1.20643749,2940.4,2938.7,3.51649067]
[1769201126517,1.20643749,2940.3,2938.7,3.51649067]
[1769201126718,1.20643749,2940.2,2938.7,3.51649067]
[1769201127023,1.20649139,2940.1,2938.4,3.34614067]
[1769201127216,1.46550059,2940.3,2938.4,3.34614067]
[1769201127417,1.20660187,2940.2,2938.7,3.34614067]
[1769201127715,0.88231206,2940.1,2938.7,3.34614067]
[1769201127910,0.17026,2940.3,2938.7,3.34614067]
[1769201128122,1.20654352,2940.2,2938.7,3.34614067]
[1769201128423,0.17026,2940.3,2938.7,3.34614067]
[1769201128722,1.20645038,2940.2,2938.7,3.34614067]
[1769201128923,0.17026,2940.3,2938.7,3.34614067]
[1769201129112,1.20642171,2940.2,2938.7,3.34614067]
[1769201129317,0.88228932,2940.1,2938.7,3.34614067]
[1769201129521,0.17026,2940.3,2938.7,3.34614067]
[1769201129717,1.20655058,2940.2,2938.7,3.34614067]
[1769201130024,0.88229366,2940.1,2938.7,3.34614067]
[1769201130219,0.17026,2940.3,2938.7,3.34614067]
[1769201130418,1.2067207,2940.2,2938.7,3.34614067]
[1769201130616,1.2067207,2940.1,2938.7,3.34614067]
[1769201130818,0.17026,2940.3,2938.7,3.34614067]
[1769201131111,1.20670939,2940.2,2938.7,3.34614067]
[1769201131323,1.20670939,2940.1,2938.7,3.34614067]
[1769201131520,3.43913913,2939.9,2938.3,3.34930163]
[1769201131724,3.44426134,2939.7,2938.3,0.00316096]
[1769201131924,1.20658749,2939.6,2938.3,0.00316096]
[1769201132125,0.32428424,2939.5,2938.3,0.00316096]
[1769201132313,3.44426134,2939.7,2938.3,0.00316096]
[1769201132519,1.20636768,2939.6,2938.3,0.00316096]
[1769201132721,0.32421255,2939.5,2938.3,0.00316096]
[1769201132925,3.44426134,2939.7,2938.3,0.00316096]
[1769201133226,1.20739991,2939.6,2938.3,0.00316096]
[1769201133521,1.20739991,2939.5,2938.3,0.00316096]
[1769201133728,3.44426134,2939.7,2938.3,0.00316096]
[1769201134033,1.20751964,2939.6,2938.3,0.00316096]
[1769201134323,1.20751964,2939.5,2938.3,0.00316096]
[1769201134522,3.44426134,2939.7,2938.3,0.00316096]
[1769201134722,1.20748611,2939.6,2938.3,0.00316096]
[1769201134919,1.29524059,2939.3,2937.6,3.406]
[1769201135228,3.27397689,2939.1,2937.6,3.406]
[1769201135417,1.20748611,2939.0,2937.6,3.406]
[1769201135623,0.32451379,2938.9,2937.6,3.406]
[1769201135820,0.32425387,2938.8,2937.6,3.406]
[1769201136026,0.00421845,2938.8,2937.6,3.40944589]
[1769201136523,0.00421845,2938.8,2937.7,3.26944869]
[1769201136729,0.17539221,2939.7,2937.9,3.26944869]
[1769201136930,1.20663913,2939.6,2937.9,3.26944869]
[1769201137228,0.32430446,2939.5,2937.9,3.26944869]
[1769201137528,0.32423317,2939.4,2937.9,3.26944869]
[1769201137723,0.00435552,2939.5,2937.9,3.26944869]
[1769201137919,0.32422676,2939.4,2937.9,3.26944869]
[1769201138122,0.00435552,2939.5,2937.9,3.26944869]
[1769201138318,0.32419342,2939.4,2937.9,3.26944869]
[1769201138531,1.2062426,2939.3,2937.9,3.26944869]
[1769201138731,0.32419342,2939.2,2937.9,3.26944869]
[1769201139027,0.17466552,2939.5,2937.9,3.26944869]
[1769201139230,1.20631801,2939.4,2937.9,3.26944869]
[1769201139429,1.20631801,2939.3,2937.9,3.26944869]
[1769201139624,0.32419157,2939.2,2937.9,3.26944869]
[1769201139830,0.17466552,2939.5,2937.9,3.26944869]
[1769201140031,1.20616156,2939.4,2937.9,3.26944869]
[1769201140231,1.20616156,2939.3,2937.9,3.26944869]
[1769201140424,0.32415003,2939.2,2937.9,3.26944869]
[1769201140625,0.17466552,2939.5,2937.9,3.26944869]
[1769201140925,1.20620749,2939.4,2937.9,3.26944869]
[1769201141124,0.32416224,2939.3,2937.9,3.26944869]
[1769201141332,0.17466552,2939.5,2937.9,3.26944869]
[1769201141534,1.20622476,2939.4,2937.9,3.26944869]
[1769201141733,0.32416761,2939.3,2937.9,3.26944869]
[1769201141933,0.17466552,2939.5,2937.9,3.26944869]
[1769201142233,1.20610566,2939.4,2937.9,3.26944869]
[1769201142435,0.32413565,2939.3,2937.9,3.26944869]
[1769201142624,0.17466552,2939.5,2937.9,3.26944869]
[1769201142828,1.20582675,2939.4,2937.9,3.26944869]
[1769201143027,0.32406097,2939.3,2937.9,3.26944869]
[1769201143226,0.17466552,2939.5,2937.9,3.26944869]
[1769201143432,1.20603016,2939.4,2937.9,3.26944869]
[1769201143732,0.32411573,2939.3,2937.9,3.26944869]
[1769201143926,0.17466552,2939.5,2937.9,3.26944869]
[1769201144128,1.20603886,2939.4,2937.9,3.26944869]
[1769201144432,0.32411138,2939.3,2937.9,3.26944869]
[1769201144633,0.17466552,2939.5,2937.9,3.26944869]
[1769201144835,1.20644709,2939.4,2937.9,3.26944869]
[1769201145034,0.17466552,2939.5,2937.9,3.26944869]
[1769201145233,1.20644523,2939.4,2937.9,3.26944869]
[1769201145432,0.00435552,2939.5,2938.1,3.43982869]
[1769201147236,0.32491872,2939.4,2938.1,3.43982869]
[1769201147435,0.00435552,2939.5,2938.1,3.43982869]
[1769201147833,0.00435552,2939.5,2938.1,3.26944869]
[1769201148033,1.29524059,2939.3,2937.6,3.44330458]
[1769201148236,1.20884298,2939.2,2937.6,3.44330458]
[1769201148446,1.20884298,2939.1,2937.6,3.44330458]
[1769201148637,1.29524059,2939.3,2937.6,3.44330458]
[1769201148832,1.20664009,2939.2,2937.6,3.44330458]
[1769201149035,1.20664009,2939.1,2937.6,3.44330458]
[1769201149236,1.29524059,2939.3,2937.6,3.44330458]
[1769201149437,1.20631996,2939.2,2937.6,3.44330458]
[1769201149639,4.48029685,2939.1,2937.6,0.00344589]
[1769201149944,0.17035,2938.8,2937.6,0.00344589]
[1769201150143,1.20631996,2938.7,2937.6,0.00344589]
[1769201150343,0.17035,2938.8,2937.6,0.00344589]
[1769201150644,1.20578311,2938.7,2937.6,0.00344589]
[1769201150840,0.32459252,2938.6,2937.6,0.00344589]
[1769201151040,0.17035,2938.8,2937.6,0.00344589]
[1769201151242,1.37608786,2938.7,2937.6,0.00344589]
[1769201151441,1.20573786,2938.6,2937.6,0.00344589]
[1769201151641,0.17035,2938.7,2937.6,0.00344589]
[1769201151943,1.20515446,2938.6,2937.6,0.00344589]
[1769201152242,0.17035,2938.7,2937.6,0.00344589]
[1769201152446,1.20470205,2938.6,2937.6,0.00344589]
[1769201152646,0.88040055,2938.5,2937.6,0.00344589]
[1769201152845,0.17035,2938.7,2937.6,0.00344589]
[1769201153047,1.20461758,2938.6,2937.6,0.00344589]
[1769201153242,0.880337,2938.5,2937.6,0.00344589]
[1769201153442,0.17035,2938.7,2937.6,0.00344589]
[1769201153644,1.20372755,2938.6,2937.6,0.00344589]
[1769201153846,0.87968172,2938.5,2937.6,0.00344589]
[1769201154041,0.17035,2938.7,2937.6,0.00344589]
[1769201154242,1.20355405,2938.6,2937.6,0.00344589]
[1769201154439,4.56921748,2938.8,2937.1,3.26944869]
[1769201154641,0.17036,2938.5,2936.7,3.26944869]
[1769201154841,1.20318312,2938.4,2936.7,3.26944869]
[1769201155040,0.17036,2938.5,2936.7,3.26944869]
[1769201155246,0.00510221,2937.9,2936.7,3.26944869]
[1769201155440,0.00510221,2937.9,2936.7,3.27261969]
[1769201157746,0.00510221,2937.9,2936.7,0.003171]
[1769201157944,0.87876125,2937.8,2936.7,0.003171]
[1769201158146,0.00510221,2937.9,2936.7,0.003171]
[1769201158347,0.87850854,2937.8,2936.7,0.003171]
[1769201158648,0.00510221,2937.9,2936.7,0.003171]
[1769201158849,0.87850899,2937.8,2936.7,0.003171]
[1769201159044,0.00510221,2937.9,2936.7,0.003171]
[1769201159244,5.77127423,2937.8,2936.2,3.26944869]
[1769201159448,1.04891922,2937.7,2936.2,3.26944869]
[1769201159650,1.29524059,2937.8,2936.2,3.26944869]
[1769201159848,0.87817761,2937.7,2936.2,3.26944869]
[1769201160048,1.29524059,2937.8,2936.2,3.26944869]
[1769201160246,0.00510221,2937.9,2936.4,3.26944869]
[1769201160440,0.00510221,2937.9,2936.5,0.17048]
[1769201160649,0.00510221,2937.9,2936.6,3.43991869]
[1769201161247,0.27660169,2938.8,2937.1,3.26944869]
[1769201161452,1.20283295,2938.7,2937.1,3.26944869]
[1769201161648,0.17034,2938.9,2937.1,3.26944869]
[1769201161849,1.20279154,2938.8,2937.1,3.26944869]
[1769201162158,0.87899842,2938.7,2937.1,3.26944869]
[1769201162357,0.2746873,2938.8,2937.1,3.26944869]
[1769201162654,4.42230242,2938.7,2937.1,3.26944869]
[1769201162851,4.42230242,2938.6,2937.0,0.00510221]
[1769201163049,1.2028737,2938.5,2937.0,0.00510221]
[1769201163354,0.17036,2938.6,2937.0,3.48464488]
[1769201163550,1.2029349,2938.5,2937.0,3.48464488]
[1769201163747,0.17036,2938.6,2937.0,3.48464488]
[1769201163952,1.20251268,2938.5,2937.0,3.48464488]
[1769201164154,0.17036,2938.6,2937.0,3.48464488]
[1769201164457,1.20211753,2938.5,2937.0,3.48464488]
[1769201164656,1.29524059,2938.8,2937.0,3.48464488]
[1769201164854,1.2021031,2938.7,2937.0,3.48464488]
[1769201165049,1.2021031,2938.6,2937.0,3.48464488]
[1769201165254,1.5656907,2938.8,2937.0,3.48464488]
[1769201165454,1.20201738,2938.7,2937.0,3.48464488]
[1769201165760,1.20201738,2938.6,2937.0,3.48464488]
[1769201165955,0.27045011,2938.8,2937.0,3.65509488]
[1769201166160,0.17033,2939.0,2937.0,3.65509488]
[1769201166161,1.20218957,2938.7,2937.0,3.65509488]
[1769201166359,3.22378424,2939.5,2937.7,3.47954267]
[1769201166555,1.20271896,2939.4,2937.9,3.47954267]
[1769201166754,0.00435552,2939.5,2937.9,3.47954267]
[1769201167058,1.20256838,2939.4,2937.9,3.47954267]
[1769201167260,0.87892316,2939.3,2937.9,3.47954267]
[1769201167564,0.27244051,2939.5,2937.9,3.47954267]
[1769201167754,1.20270479,2939.4,2937.9,3.47954267]
[1769201167954,0.00435552,2939.5,2937.9,3.47954267]
[1769201168154,1.20267969,2939.4,2937.9,3.47954267]
[1769201168450,0.00435552,2939.5,2937.9,3.47954267]
[1769201168648,1.20277333,2939.4,2937.9,3.47954267]
[1769201168855,0.00435552,2939.5,2938.1,3.59976313]
[1769201169060,0.00435552,2939.5,2938.3,3.59976313]
[1769201169363,0.00435552,2939.5,2938.3,3.77425489]
[1769201169550,0.00435552,2939.5,2938.5,3.77012313]
[1769201169753,3.408,2940.6,2938.9,3.59976313]
[1769201169952,1.20347871,2940.5,2938.9,3.59976313]
[1769201170152,1.20347871,2940.4,2938.9,3.59976313]
[1769201170353,0.87950082,2940.3,2938.9,3.59976313]
[1769201170558,4.64078968,2940.2,2938.6,0.00510221]
[1769201170756,4.64078968,2940.1,2938.6,0.00510221]
[1769201170963,4.64078968,2940.0,2938.6,0.00510221]
[1769201171152,1.20268693,2939.9,2938.6,0.00510221]
[1769201171355,3.43810275,2940.0,2938.6,0.00510221]
[1769201171554,1.20245362,2939.9,2938.6,0.00510221]
[1769201171757,3.43810275,2940.0,2938.6,0.00510221]
[1769201171758,0.87875839,2939.8,2938.6,0.00510221]
[1769201171957,3.43810275,2940.0,2938.6,0.00510221]
[1769201172159,1.20258086,2939.9,2938.6,0.00510221]
[1769201172360,3.43810275,2939.7,2938.6,0.00510221]
[1769201172558,1.20248001,2939.6,2938.6,0.00510221]
[1769201172862,4.73334334,2939.3,2938.3,0.00412176]
[1769201173064,4.73334334,2939.3,2937.5,3.408]
[1769201173065,1.20228769,2939.2,2937.5,3.408]
[1769201173365,0.17034,2939.0,2937.4,3.59976313]
[1769201173565,1.29524059,2938.8,2937.0,0.17045]
[1769201173762,4.73334334,2938.8,2937.0,0.17045]
[1769201173965,0.87856238,2938.7,2937.0,0.17339696]
[1769201174160,4.73334334,2938.8,2937.0,0.17339696]
[1769201174357,0.87860791,2938.7,2937.0,0.00294696]
[1769201174561,1.20220282,2938.6,2937.0,0.00294696]
[1769201174765,0.87856328,2938.5,2937.0,0.00294696]
[1769201174961,3.43810275,2938.7,2937.0,0.00294696]
[1769201175162,4.64034168,2938.6,2937.0,0.00294696]
[1769201175367,1.20223893,2938.5,2937.0,0.00294696]
[1769201175668,3.43810275,2938.6,2937.0,0.00294696]
[1769201175971,1.20217354,2938.5,2937.0,0.00294696]
[1769201176170,3.43810275,2938.6,2937.0,0.00294696]
[1769201176364,1.20231768,2938.5,2937.0,0.00294696]
[1769201176671,3.43810275,2938.6,2937.0,3.60271009]
[1769201176869,1.20237802,2938.5,2937.0,3.60271009]
[1769201177068,3.43810275,2938.6,2937.0,3.60271009]
[1769201177370,1.20238432,2938.5,2937.0,3.60271009]
[1769201177571,3.43810275,2938.6,2937.0,3.60271009]
[1769201177771,1.20254841,2938.5,2937.0,3.60271009]
[1769201177971,3.43810275,2939.1,2937.0,3.77316009]
[1769201178274,1.20267489,2939.0,2937.0,3.77316009]
[1769201178472,1.20267489,2938.9,2937.0,3.77316009]
[1769201178666,3.43810275,2939.1,2937.0,3.77316009]
[1769201178971,1.20245847,2939.0,2937.0,3.77316009]
[1769201179166,1.20245847,2938.9,2937.0,3.77316009]
[1769201179370,0.8786928,2938.8,2937.0,3.77316009]
[1769201179673,3.60843275,2939.1,2937.0,3.77316009]
[1769201179870,1.20248537,2939.0,2937.0,3.77316009]
[1769201180060,3.43810275,2938.8,2937.0,3.77316009]
[1769201180261,3.60846275,2938.6,2937.0,3.60271009]
[1769201180465,1.20234127,2938.5,2937.0,3.60271009]
[1769201180671,3.60846275,2938.6,2937.0,3.60271009]
[1769201180873,1.20187657,2938.5,2937.0,3.60271009]
[1769201181068,3.60846275,2938.6,2937.0,3.60271009]
[1769201181369,4.63994343,2938.5,2937.0,0.00294696]
[1769201181671,3.60850275,2938.0,2936.1,3.59976313]
[1769201181865,4.81000968,2937.9,2936.1,3.59976313]
[1769201182173,3.60850275,2937.9,2936.1,3.59976313]
[1769201182363,0.00510221,2937.3,2935.7,0.17052]
[1769201182567,0.00510221,2937.3,2935.7,3.77028313]
[1769201182772,3.44668877,2937.3,2935.7,0.00391136]
[1769201183072,0.00858602,2937.3,2935.7,3.60367449]
[1769201183276,0.00858602,2937.3,2935.7,3.77419449]
[1769201183474,0.00858602,2937.3,2935.7,0.00391136]
[1769201183673,3.43810275,2938.3,2936.3,3.77025313]
[1769201183878,1.20056663,2938.2,2936.3,3.77025313]
[1769201184171,3.43810275,2938.3,2936.3,3.77025313]
[1769201184372,3.43810275,2938.3,2936.2,0.00510221]
[1769201184373,3.43810275,2938.3,2936.5,3.59976313]
[1769201184578,0.17037,2938.4,2936.5,3.59976313]
[1769201184776,4.63853367,2938.3,2936.5,3.59976313]
[1769201185074,0.17382595,2938.4,2936.5,3.59976313]
[1769201185271,0.87725572,2938.3,2936.5,3.59976313]
[1769201185473,0.87725572,2938.2,2936.5,3.59976313]
[1769201185671,3.43810275,2938.3,2936.5,3.59976313]
[1769201185868,1.20039262,2938.2,2936.5,3.59976313]
[1769201186067,3.43810275,2938.3,2936.5,3.59976313]
[1769201186571,0.00345595,2938.4,2936.7,3.77023313]
[1769201187473,0.00345595,2938.4,2937.0,3.59976313]
[1769201190572,3.4415587,2938.4,2936.5,3.59976313]
[1769201190875,1.2005698,2938.3,2936.5,3.59976313]
[1769201191072,1.2005698,2938.2,2936.5,3.59976313]
[1769201191276,1.2005698,2938.1,2936.5,3.59976313]
[1769201191472,6.59337,2938.3,2936.5,3.59976313]
[1769201191674,0.87724069,2938.2,2936.5,3.59976313]
[1769201191873,6.59337,2938.3,2936.5,3.59976313]
[1769201192075,0.87725971,2938.2,2936.5,3.59976313]
[1769201192278,6.59337,2938.3,2936.5,3.59976313]
[1769201192480,1.20036117,2938.2,2936.5,3.59976313]
[1769201192774,3.26121077,2938.0,2936.3,3.31936148]
[1769201192980,4.13829346,2937.9,2936.3,3.31936148]
[1769201193185,3.26121077,2937.9,2936.3,3.31936148]
[1769201193481,1.20000811,2937.8,2936.3,3.31936148]
[1769201193775,3.43162077,2937.6,2936.2,0.00510221]
[1769201193976,3.26121077,2937.4,2936.2,0.00510221]
[1769201195876,0.17042,2937.5,2936.2,0.00510221]
[1769201196280,0.17039,2938.1,2936.2,3.32446369]